bitfinex-derivatives/quotes_SOLF0:USTF0_20250609
["timestamp","ask_amount","ask_price","bid_price","bid_amount"]
[1749460144445,6.6001,151.44,151.43,0.04555605]
[1749460144649,10.75141024,151.44,151.43,0.04555605]
[1749460144848,6.6001,151.44,151.43,0.04555605]
[1749460145346,10.75142775,151.44,151.43,0.04555605]
[1749460146339,10.75142646,151.44,151.43,0.04555605]
[1749460146538,10.75141963,151.44,151.43,0.04555605]
[1749460146739,10.75143147,151.44,151.43,0.04555605]
[1749460147439,6.6001,151.44,151.43,0.04555605]
[1749460150450,2.73720992,151.44,151.39,2.73720992]
[1749460150653,2.73720992,151.42,151.35,123.41696367]
[1749460150853,2.73720992,151.42,151.39,2.73720992]
[1749460151150,6.6017,151.41,151.39,2.73720992]
[1749460152748,2.78356271,151.42,151.38,0.0504993]
[1749460152955,2.73720992,151.41,151.38,2.78770922]
[1749460153154,2.78356271,151.42,151.38,2.78770922]
[1749460153348,6.6019,151.4,151.38,2.78770922]
[1749460153654,2.73720992,151.41,151.38,2.78770922]
[1749460153856,6.6023,151.39,151.38,2.78770922]
[1749460154653,6.6023,151.39,151.38,0.0504993]
[1749460156254,9.33950992,151.39,151.38,0.0504993]
[1749460156554,5.05750992,151.39,151.34,2.73720992]
[1749460156763,2.73720992,151.38,151.34,2.73720992]
[1749460157058,6.6039,151.36,151.34,2.73720992]
[1749460157359,0.04224497,151.37,151.35,2.73720992]
[1749460157560,6.64574497,151.37,151.35,2.73720992]
[1749460158056,0.04224497,151.37,151.36,2.73720992]
[1749460158558,0.04224497,151.37,151.36,9.34080992]
[1749460163462,0.04224497,151.37,151.36,6.6036]
[1749460163655,0.04224497,151.37,151.36,9.34080992]
[1749460164858,0.04224497,151.37,151.36,6.6036]
[1749460165062,0.04224497,151.37,151.36,9.34080992]
[1749460166564,0.04224497,151.37,151.36,6.6036]
[1749460166767,0.04224497,151.37,151.36,9.34080992]
[1749460168565,2.1429,151.42,151.39,6.6021]
[1749460168758,2.1429,151.42,151.39,9.33930992]
[1749460168955,8.744,151.42,151.39,9.33930992]
[1749460169263,6.6011,151.42,151.39,9.33930992]
[1749460169660,6.64822876,151.42,151.4,9.33890992]
[1749460169859,0.04712876,151.42,151.41,2.73720992]
[1749460171668,0.04712876,151.42,151.41,9.33850992]
[1749460172971,6.5988,151.47,151.44,6.5999]
[1749460173169,2.2412,151.49,151.46,2.73720992]
[1749460173377,2.2412,151.49,151.44,4.27757465]
[1749460173668,6.5984,151.48,151.45,6.5994]
[1749460173972,6.64464578,151.48,151.45,6.64811819]
[1749460174473,6.64464578,151.48,151.45,0.04871819]
[1749460175366,6.64464578,151.48,151.45,6.64821819]
[1749460175563,6.64464578,151.48,151.45,0.04871819]
[1749460177172,6.5987,151.47,151.45,0.04871819]
[1749460177773,6.5991,151.46,151.45,0.04871819]
[1749460178575,4.32382043,151.48,151.41,4.27757465]
[1749460179473,4.32382043,151.48,151.43,0.04869292]
[1749460180074,6.6,151.44,151.43,0.04869292]
[1749460180979,6.6018,151.4,151.37,4.27757465]
[1749460181178,4.27757465,151.44,151.37,4.27757465]
[1749460181573,6.602,151.4,151.37,4.27757465]
[1749460182073,0.04945267,151.4,151.39,4.27757465]
[1749460182273,2.2671,151.45,151.39,4.27757465]
[1749460182274,10.45554421,151.48,151.39,4.27757465]
[1749460182473,10.45554421,151.48,151.41,10.87857465]
[1749460182976,10.45554421,151.48,151.41,4.27757465]
[1749460183279,6.6,151.44,151.43,0.04595932]
[1749460185067,6.6016,151.41,151.33,2.1584]
[1749460185276,10.42999251,151.46,151.37,10.88017465]
[1749460185477,6.15241786,151.45,151.37,10.88017465]
[1749460186178,6.6016,151.41,151.39,0.04840189]
[1749460187078,6.6017,151.4,151.39,0.04840189]
[1749460188478,0.04622224,151.43,151.39,0.04840189]
[1749460189279,6.6011,151.42,151.39,6.65050189]
[1749460191376,6.6014,151.41,151.39,6.65050189]
[1749460192280,6.6009,151.42,151.39,6.65050189]
[1749460193684,0.04622224,151.43,151.41,6.6013]
[1749460194572,0.04622224,151.43,151.42,6.6009]
[1749460195080,6.64672224,151.43,151.4,10.87907465]
[1749460195781,0.04622224,151.43,151.41,6.6013]
[1749460197376,0.04622224,151.43,151.42,6.6009]
[1749460197583,0.04622224,151.43,151.42,10.87847465]
[1749460201177,0.04622224,151.43,151.42,6.6009]
[1749460201377,0.04622224,151.43,151.42,10.87847465]
[1749460202379,6.5985,151.48,151.45,10.87697465]
[1749460202581,8.45951786,151.52,151.45,4.27757465]
[1749460202782,6.5977,151.5,151.46,6.5987]
[1749460203282,6.5977,151.5,151.47,4.27757465]
[1749460203283,0.05042321,151.5,151.47,4.27757465]
[1749460203579,0.05042321,151.5,151.48,6.598]
[1749460205080,0.05042321,151.5,151.47,4.27757465]
[1749460206084,0.05042321,151.5,151.46,0.0463274]
[1749460206785,6.5987,151.47,151.46,0.0463274]
[1749460207286,0.05042321,151.5,151.46,0.0463274]
[1749460207490,0.05042321,151.5,151.46,4.32390205]
[1749460207977,6.64802321,151.5,151.48,4.27757465]
[1749460210789,6.5978,151.49,151.48,4.27757465]
[1749460211387,6.5986,151.48,151.46,4.32390205]
[1749460211993,6.598,151.49,151.46,4.32390205]
[1749460212384,6.598,151.49,151.46,0.0463274]
[1749460212579,6.598,151.49,151.46,4.32390205]
[1749460213089,6.64792321,151.5,151.46,10.92290205]
[1749460213285,6.64792321,151.5,151.46,4.32390205]
[1749460213686,6.64792321,151.5,151.47,6.5987]
[1749460214889,0.05042321,151.5,151.48,10.87567465]
[1749460215492,0.05042321,151.5,151.49,6.5978]
[1749460216187,0.05042321,151.5,151.48,10.87567465]
[1749460216994,0.05042321,151.5,151.49,6.5978]
[1749460222394,0.05042321,151.5,151.48,10.87567465]
[1749460224495,0.05042321,151.5,151.49,6.5978]
[1749460224695,0.05042321,151.5,151.48,4.27757465]
[1749460224889,0.05042321,151.5,151.48,10.87557465]
[1749460226198,6.64782321,151.5,151.48,4.27757465]
[1749460226496,0.05042321,151.5,151.48,4.27757465]
[1749460227700,0.05042321,151.5,151.48,10.87577465]
[1749460231303,0.05042321,151.5,151.49,6.5978]
[1749460233905,0.05042321,151.5,151.48,10.87567465]
[1749460234295,0.05042321,151.5,151.48,4.27757465]
[1749460234495,0.05042321,151.5,151.46,0.0463274]
[1749460234496,0.05042321,151.5,151.46,4.32390205]
[1749460234897,6.64802321,151.5,151.47,6.5984]
[1749460235504,6.5981,151.49,151.46,10.92280205]
[1749460235700,6.5981,151.49,151.46,6.6452274]
[1749460236418,6.64792321,151.5,151.47,6.5987]
[1749460238307,6.64792321,151.5,151.47,10.87627465]
[1749460238613,0.05042321,151.5,151.48,6.5982]
[1749460238811,0.05042321,151.5,151.47,4.27757465]
[1749460239007,0.05042321,151.5,151.46,0.0463274]
[1749460239008,0.05042321,151.5,151.49,4.27757465]
[1749460240812,0.05042321,151.5,151.49,10.87537465]
[1749460243511,6.5955,151.55,151.49,10.87537465]
[1749460243713,10.7444391,151.54,151.46,2.2209]
[1749460243914,6.5957,151.54,151.51,4.27757465]
[1749460244615,6.6448751,151.54,151.51,4.32061225]
[1749460244815,6.6448751,151.54,151.51,10.91751225]
[1749460247413,6.6448751,151.54,151.51,4.32061225]
[1749460249520,6.5961,151.53,151.51,4.32061225]
[1749460251020,6.5961,151.53,151.51,10.91751225]
[1749460251414,6.5961,151.53,151.51,4.32061225]
[1749460254523,6.5965,151.52,151.51,4.32061225]
[1749460255718,6.5963,151.53,151.51,4.32061225]
[1749460256419,6.5965,151.52,151.51,0.0430376]
[1749460256614,6.20159296,151.54,151.42,10.12709244]
[1749460256819,10.31256757,151.53,151.47,4.27757465]
[1749460257021,6.5981,151.49,151.47,4.27757465]
[1749460257315,8.60954968,151.52,151.46,6.5988]
[1749460257316,10.60181786,151.52,151.46,6.5988]
[1749460257522,6.5985,151.48,151.45,6.5995]
[1749460257720,6.64497525,151.48,151.45,10.92296087]
[1749460258218,6.5987,151.47,151.45,0.04588622]
[1749460258419,0.04647525,151.48,151.45,0.04588622]
[1749460259110,6.599,151.47,151.45,0.04588622]
[1749460260719,6.5991,151.46,151.45,0.04588622]
[1749460261321,6.6007,151.43,151.4,105.16234658]
[1749460262024,13.06761786,151.47,151.42,4.27757465]
[1749460262219,6.15241786,151.5,151.46,4.27757465]
[1749460262414,6.15241786,151.5,151.46,4.31971062]
[1749460262415,4.16025398,151.49,151.46,4.31971062]
[1749460262724,0.04948678,151.5,151.46,4.31971062]
[1749460262925,4.13307827,151.49,151.46,0.04213597]
[1749460263121,6.5983,151.48,151.46,0.04213597]
[1749460263717,0.04948678,151.5,151.47,4.27757465]
[1749460264219,0.04948678,151.5,151.49,4.27757465]
[1749460264817,0.04948678,151.5,151.49,10.87537465]
[1749460265319,0.04948678,151.5,151.48,10.87567465]
[1749460265515,0.04948678,151.5,151.46,0.04213597]
[1749460265715,10.47947929,151.5,151.46,0.04213597]
[1749460265916,8.47121786,151.49,151.46,0.04213597]
[1749460266117,2.3188,151.49,151.46,0.04213597]
[1749460266323,0.04948678,151.5,151.46,4.31971062]
[1749460266626,0.04948678,151.5,151.48,4.27757465]
[1749460266826,0.04948678,151.5,151.48,10.87557465]
[1749460267729,0.04948678,151.5,151.49,6.5978]
[1749460271232,0.04948678,151.5,151.46,0.04213597]
[1749460271535,0.04948678,151.5,151.46,4.31971062]
[1749460271835,6.5981,151.49,151.46,4.31971062]
[1749460272431,6.5981,151.49,151.46,10.91881062]
[1749460272628,0.04948678,151.5,151.46,4.31971062]
[1749460273038,0.04948678,151.5,151.47,6.5984]
[1749460273435,0.04948678,151.5,151.48,4.27757465]
[1749460273632,0.04948678,151.5,151.48,10.87567465]
[1749460275940,0.04948678,151.5,151.48,4.27757465]
[1749460276932,0.04948678,151.5,151.48,10.87577465]
[1749460277645,0.04948678,151.5,151.49,6.5978]
[1749460278033,0.04948678,151.5,151.48,4.27757465]
[1749460278242,0.04948678,151.5,151.48,10.87567465]
[1749460278742,0.04948678,151.5,151.48,4.27757465]
[1749460280047,0.04948678,151.5,151.46,0.04213597]
[1749460280446,6.5981,151.49,151.46,0.04213597]
[1749460281334,0.04948678,151.5,151.47,4.27757465]
[1749460281530,0.04948678,151.5,151.46,0.04213597]
[1749460281531,0.04948678,151.5,151.49,4.27757465]
[1749460282736,0.04948678,151.5,151.49,10.87537465]
[1749460302563,4.5541,151.54,151.49,10.87537465]
[1749460302564,2.2426,151.54,151.52,6.5961]
[1749460304568,2.2426,151.54,151.51,10.91751996]
[1749460306869,8.8384,151.54,151.51,10.91751996]
[1749460307868,2.2426,151.54,151.52,6.5965]
[1749460308566,2.2426,151.54,151.51,4.32081996]
[1749460308770,0.04682252,151.55,151.51,4.32081996]
[1749460309170,0.04682252,151.55,151.53,4.27757465]
[1749460309672,4.19808572,151.55,151.53,4.27757465]
[1749460309971,0.04682252,151.55,151.54,6.5956]
[1749460315770,12.67671541,151.63,151.53,4.27757465]
[1749460315771,6.51657465,151.63,151.53,4.27757465]
[1749460315975,6.51657465,151.63,151.56,4.27757465]
[1749460316169,4.17654375,151.62,151.56,4.27757465]
[1749460316373,4.17654375,151.61,151.56,4.27757465]
[1749460316574,4.22706187,151.6,151.57,0.05083946]
[1749460316776,0.05051812,151.6,151.57,0.05083946]
[1749460317682,6.64351812,151.6,151.57,6.64493946]
[1749460319785,0.05051812,151.6,151.57,4.32841411]
[1749460320181,6.5935,151.59,151.57,4.32841411]
[1749460320590,0.05051812,151.6,151.57,4.32841411]
[1749460320883,6.64371812,151.6,151.57,10.92251411]
[1749460321384,0.05051812,151.6,151.57,4.32841411]
[1749460321981,0.05051812,151.6,151.59,10.87107465]
[1749460322782,6.16014076,151.67,151.63,6.5917]
[1749460323085,6.16014076,151.67,151.54,2.0788]
[1749460323086,10.8853,151.68,151.64,4.27757465]
[1749460323487,4.2954,151.68,151.64,10.86857465]
[1749460323985,6.5903,151.67,151.64,4.32418514]
[1749460324281,4.34538259,151.68,151.64,0.04661049]
[1749460324484,6.5909,151.65,151.64,0.04661049]
[1749460325185,6.5924,151.62,151.59,6.5932]
[1749460325387,6.5924,151.62,151.59,10.87077465]
[1749460325588,6.5924,151.62,151.6,6.593]
[1749460326386,4.27757465,151.67,151.6,6.593]
[1749460326387,0.04420411,151.63,151.6,6.593]
[1749460326588,0.04420411,151.63,151.59,4.32513424]
[1749460327288,6.63620411,151.63,151.6,6.5928]
[1749460329987,0.04420411,151.63,151.6,6.5928]
[1749460332599,0.04420411,151.63,151.59,10.91853424]
[1749460332793,0.04420411,151.63,151.59,4.32513424]
[1749460333000,0.04420411,151.63,151.6,6.5929]
[1749460334399,0.04420411,151.63,151.61,4.27757465]
[1749460335296,0.04420411,151.63,151.62,6.5922]
[1749460335496,2.224,151.7,151.61,4.27757465]
[1749460335692,2.224,151.7,151.68,4.27757465]
[1749460335898,6.5883,151.71,151.68,4.27757465]
[1749460336501,0.04487935,151.71,151.68,4.31979066]
[1749460337804,0.04487935,151.71,151.7,4.27757465]
[1749460338603,0.04487935,151.71,151.7,10.86627465]
[1749460338806,2.2749,151.76,151.7,10.86627465]
[1749460338807,2.2749,151.76,151.7,4.27757465]
[1749460339000,2.2749,151.76,151.61,64.1706]
[1749460339408,2.2749,151.76,151.69,4.27757465]
[1749460339802,6.5876,151.73,151.71,0.04307452]
[1749460340902,6.6354288,151.74,151.71,4.32064917]
[1749460341103,0.0483288,151.74,151.72,6.5874]
[1749460343309,0.0483288,151.74,151.73,10.86497465]
[1749460344208,2.1896,151.8,151.76,6.5859]
[1749460345008,6.585,151.79,151.76,6.5859]
[1749460345208,0.04781312,151.79,151.76,0.04804842]
[1749460345611,0.04781312,151.79,151.77,4.27757465]
[1749460345810,0.04781312,151.79,151.77,10.86317465]
[1749460346211,0.04781312,151.79,151.77,4.27757465]
[1749460346409,0.04781312,151.79,151.78,6.5852]
[1749460346612,4.35167694,151.79,151.78,6.5852]
[1749460346814,4.35167658,151.79,151.78,6.5852]
[1749460347008,0.04781312,151.79,151.78,6.5852]
[1749460347212,0.04781312,151.79,151.77,10.86307465]
[1749460347415,4.30382813,151.78,151.77,10.86307465]
[1749460347718,0.04781312,151.79,151.77,10.86307465]
[1749460347919,4.33561484,151.78,151.77,4.27757465]
[1749460348122,4.33567033,151.78,151.77,4.27757465]
[1749460348316,0.04781312,151.79,151.77,4.27757465]
[1749460348518,4.33707453,151.78,151.77,4.27757465]
[1749460348715,0.04781312,151.79,151.77,4.27757465]
[1749460349125,4.33705963,151.78,151.77,4.27757465]
[1749460349318,0.04781312,151.79,151.78,6.5852]
[1749460349625,0.04781312,151.79,151.77,4.27757465]
[1749460350018,4.337035,151.78,151.77,4.27757465]
[1749460350225,0.04781312,151.79,151.78,6.5852]
[1749460350421,6.5834,151.83,151.77,4.27757465]
[1749460350621,6.5834,151.83,151.8,4.27757465]
[1749460351025,2.2761,151.85,151.82,4.27757465]
[1749460351519,6.5829,151.84,151.82,4.32224455]
[1749460351718,2.32403224,151.85,151.82,4.32224455]
[1749460352018,0.04793224,151.85,151.82,4.32224455]
[1749460352829,0.04793224,151.85,151.82,10.90564455]
[1749460354330,0.04793224,151.85,151.83,6.583]
[1749460354532,0.04793224,151.85,151.82,4.32224455]
[1749460354932,6.63033224,151.85,151.82,10.90544455]
[1749460356326,0.04793224,151.85,151.83,6.583]
[1749460357529,0.04793224,151.85,151.84,10.86017465]
[1749460358227,0.04793224,151.85,151.82,0.0446699]
[1749460358228,2.73711092,151.89,151.82,0.0446699]
[1749460358428,2.73711092,151.89,151.86,4.27757465]
[1749460358822,2.73711092,151.89,151.86,10.85897465]
[1749460359224,2.78155783,151.89,151.86,4.32463436]
[1749460359424,9.36225783,151.89,151.86,4.32463436]
[1749460359629,2.78155783,151.89,151.86,0.04705971]
[1749460360932,6.5813,151.87,151.86,0.04705971]
[1749460363529,10.90399007,151.87,151.86,0.00420441]
[1749460363924,6.5813,151.87,151.86,0.00420441]
[1749460364829,10.90830722,151.87,151.86,0.00420441]
[1749460365129,10.90829374,151.87,151.86,0.00420441]
[1749460365732,6.5813,151.87,151.86,0.00420441]
[1749460365930,10.9083342,151.87,151.86,0.00420441]
[1749460366322,6.5813,151.87,151.86,0.00420441]
[1749460366531,10.9083207,151.87,151.86,0.00420441]
[1749460366730,10.90829373,151.87,151.86,0.00420441]
[1749460366931,6.5813,151.87,151.86,0.00420441]
[1749460367131,10.90832078,151.87,151.86,0.00420441]
[1749460367535,10.89388285,151.87,151.86,0.00420441]
[1749460367835,6.5813,151.87,151.86,0.00420441]
[1749460368334,10.89423501,151.87,151.86,0.00420441]
[1749460368533,6.5813,151.87,151.86,0.00420441]
[1749460368733,10.89426258,151.87,151.86,0.00420441]
[1749460368932,6.5813,151.87,151.86,0.00420441]
[1749460369134,10.89426258,151.87,151.86,0.00420441]
[1749460369333,10.88945254,151.87,151.86,0.00420441]
[1749460369529,6.5813,151.87,151.86,0.00420441]
[1749460370330,10.88943874,151.87,151.86,0.00420441]
[1749460370530,10.88945254,151.87,151.86,0.00420441]
[1749460370731,6.5813,151.87,151.86,0.00420441]
[1749460371235,10.88945272,151.87,151.86,0.00420441]
[1749460371435,10.88945108,151.87,151.86,0.00420441]
[1749460372030,6.5813,151.87,151.86,0.00420441]
[1749460372536,10.88495334,151.87,151.86,0.00420441]
[1749460373133,10.88482834,151.87,151.86,0.00420441]
[1749460373442,6.5837,151.82,151.79,4.27757465]
[1749460373632,4.30358081,151.81,151.79,10.86207465]
[1749460373833,4.27757465,151.86,151.79,4.27757465]
[1749460374040,6.5829,151.84,151.79,4.27757465]
[1749460374339,4.34896173,151.83,151.8,6.63062188]
[1749460374539,4.30356977,151.82,151.8,6.63062188]
[1749460374735,0.0454057,151.83,151.8,0.04652188]
[1749460374931,4.30319003,151.81,151.8,6.63082188]
[1749460375235,4.30318853,151.81,151.8,0.04652188]
[1749460375537,0.0454057,151.83,151.81,6.5838]
[1749460375932,4.30318853,151.82,151.81,6.5838]
[1749460376538,0.0454057,151.83,151.82,6.5835]
[1749460376735,4.34856059,151.83,151.82,6.5835]
[1749460376938,0.0454057,151.83,151.82,6.5835]
[1749460377134,4.34857101,151.83,151.82,6.5835]
[1749460377437,0.0454057,151.83,151.82,6.5835]
[1749460377832,4.33703967,151.83,151.82,6.5835]
[1749460378029,4.33677258,151.83,151.82,6.5835]
[1749460378239,0.0454057,151.83,151.82,6.5835]
[1749460378440,4.33677258,151.83,151.82,6.5835]
[1749460378635,0.0454057,151.83,151.81,6.5837]
[1749460378833,0.0454057,151.83,151.8,0.04652188]
[1749460379138,0.0454057,151.83,151.82,6.5835]
[1749460379535,4.33671782,151.83,151.82,6.5835]
[1749460379737,4.33670695,151.83,151.82,6.5835]
[1749460379945,0.0454057,151.83,151.82,6.5835]
[1749460380133,4.33658044,151.83,151.82,6.5835]
[1749460380434,4.33657892,151.83,151.82,6.5835]
[1749460380838,4.33655292,151.83,151.82,6.5835]
[1749460381430,0.0454057,151.83,151.82,6.5835]
[1749460382136,4.33641913,151.83,151.82,6.5835]
[1749460382337,0.0454057,151.83,151.82,6.5835]
[1749460386843,4.28563059,151.86,151.85,6.5822]
[1749460387043,4.28563059,151.86,151.85,10.85977465]
[1749460387845,2.73711092,151.89,151.87,6.5809]
[1749460388045,2.73711092,151.89,151.88,4.27757465]
[1749460388544,2.73711092,151.89,151.84,0.0435866]
[1749460388745,2.73711092,151.89,151.85,4.27757465]
[1749460389342,8.83835536,151.89,151.85,4.27757465]
[1749460390734,6.10124444,151.88,151.85,4.27757465]
[1749460390944,8.83835536,151.89,151.85,4.27757465]
[1749460391340,2.73711092,151.89,151.85,4.27757465]
[1749460391644,6.5811,151.88,151.85,10.85947465]
[1749460392344,9.31771092,151.89,151.86,6.5815]
[1749460392646,9.31771092,151.89,151.87,4.27757465]
[1749460393646,9.31771092,151.89,151.87,10.85877465]
[1749460394346,2.73711092,151.89,151.87,10.85877465]
[1749460394546,2.73711092,151.89,151.88,6.5809]
[1749460395442,2.73711092,151.89,151.87,10.85877465]
[1749460396148,2.73711092,151.89,151.88,6.5809]
[1749460396542,2.73711092,151.89,151.87,10.85867465]
[1749460396849,2.73711092,151.89,151.87,4.27757465]
[1749460397244,0.04270413,151.9,151.87,4.27757465]
[1749460397547,0.04270413,151.9,151.89,4.27757465]
[1749460397850,0.04270413,151.9,151.88,6.63001094]
[1749460398056,6.62590508,151.91,151.87,4.3254811]
[1749460398447,6.62590508,151.91,151.87,10.9065811]
[1749460398750,6.5801,151.9,151.87,10.9065811]
[1749460403752,6.5801,151.9,151.87,4.3254811]
[1749460404049,6.5807,151.89,151.87,0.04790645]
[1749460404253,0.04610508,151.91,151.87,0.04790645]
[1749460404750,6.5809,151.89,151.87,0.04790645]
[1749460405756,0.04610508,151.91,151.87,0.04790645]
[1749460406454,6.5809,151.88,151.87,0.04790645]
[1749460407154,6.5806,151.89,151.87,0.04790645]
[1749460408057,6.5809,151.88,151.87,0.04790645]
[1749460410352,0.04610508,151.91,151.87,0.04790645]
[1749460410353,6.5806,151.89,151.87,0.04790645]
[1749460411159,6.5809,151.88,151.87,0.04790645]
[1749460412162,6.5824,151.85,151.82,6.5831]
[1749460413056,6.62584094,151.85,151.82,6.62468996]
[1749460413860,0.04344094,151.85,151.82,0.04158996]
[1749460414662,4.27757465,151.83,151.76,4.27757465]
[1749460414960,6.5858,151.77,151.72,2.1154]
[1749460415163,4.27757465,151.81,151.74,4.27757465]
[1749460415365,6.46027465,151.81,151.68,8.47877465]
[1749460415570,0.05067819,151.76,151.74,4.27757465]
[1749460416254,6.5865,151.75,151.73,0.04585067]
[1749460416463,0.05067819,151.76,151.73,0.04585067]
[1749460417068,6.587,151.74,151.73,0.04585067]
[1749460417359,0.05067819,151.76,151.7,4.27757465]
[1749460417557,0.05067819,151.76,151.72,4.27757465]
[1749460417753,2.1877,151.78,151.72,4.27757465]
[1749460418162,6.5858,151.77,151.73,6.5871]
[1749460418356,6.6317076,151.77,151.73,6.62886473]
[1749460419153,6.5861,151.76,151.73,6.62886473]
[1749460419356,0.0459076,151.77,151.73,6.62886473]
[1749460420166,6.6317076,151.77,151.73,6.62886473]
[1749460420867,6.6317076,151.77,151.74,6.5869]
[1749460421479,6.6317076,151.77,151.73,6.62906473]
[1749460422165,6.5861,151.76,151.73,6.62906473]
[1749460422370,6.5861,151.76,151.73,0.04176473]
[1749460422763,8.7803076,151.77,151.73,6.62906473]
[1749460424173,2.1944076,151.77,151.74,6.5868]
[1749460424470,2.1944076,151.77,151.74,10.86437465]
[1749460424671,0.0459076,151.77,151.76,4.27757465]
[1749460424867,0.0459076,151.77,151.75,4.27757465]
[1749460425463,0.0459076,151.77,151.75,10.86377465]
[1749460426270,0.0459076,151.77,151.75,4.27757465]
[1749460427771,6.6317076,151.77,151.75,4.27757465]
[1749460428173,0.0459076,151.77,151.75,4.27757465]
[1749460429175,0.0459076,151.77,151.76,6.5861]
[1749460430068,0.0459076,151.77,151.75,4.27757465]
[1749460430577,0.0459076,151.77,151.76,6.5861]
[1749460430868,0.0459076,151.77,151.75,4.27757465]
[1749460431673,0.0459076,151.77,151.75,10.86387465]
[1749460432370,0.0459076,151.77,151.76,6.5861]
[1749460435066,6.5837,151.82,151.78,6.5852]
[1749460435269,4.4717,151.83,151.79,4.27757465]
[1749460435776,6.5837,151.82,151.79,4.27757465]
[1749460435973,0.04920795,151.82,151.79,4.32102272]
[1749460436579,6.5841,151.81,151.79,4.32102272]
[1749460436777,0.04920795,151.82,151.79,4.32102272]
[1749460437279,6.63300795,151.82,151.79,10.90582272]
[1749460437579,0.04920795,151.82,151.79,4.32102272]
[1749460438482,6.5843,151.81,151.79,4.32102272]
[1749460438779,0.04920795,151.82,151.79,4.32102272]
[1749460439175,6.584,151.81,151.79,4.32102272]
[1749460439576,6.584,151.81,151.79,0.04344807]
[1749460440984,6.5844,151.8,151.79,0.04344807]
[1749460441384,0.04920795,151.82,151.79,0.04344807]
[1749460442578,0.04920795,151.82,151.8,4.27757465]
[1749460443375,6.584,151.81,151.8,4.27757465]
[1749460444680,6.5844,151.8,151.79,0.04344807]
[1749460446781,6.5842,151.81,151.79,0.04344807]
[1749460448179,6.63290795,151.82,151.8,4.27757465]
[1749460448380,0.04920795,151.82,151.8,4.27757465]
[1749460449375,6.63300795,151.82,151.8,4.27757465]
[1749460451386,6.584,151.81,151.8,4.27757465]
[1749460451886,0.04920795,151.82,151.8,4.27757465]
[1749460452188,6.63300795,151.82,151.8,4.27757465]
[1749460453585,6.584,151.81,151.8,4.27757465]
[1749460456195,6.5844,151.8,151.79,0.04344807]
[1749460456999,6.5861,151.77,151.75,4.27757465]
[1749460457395,2.1281,151.81,151.75,4.27757465]
[1749460457796,4.27757465,151.8,151.73,4.27757465]
[1749460457994,0.04466284,151.78,151.75,0.04542306]
[1749460458198,6.5862,151.76,151.75,0.04542306]
[1749460462107,6.5858,151.77,151.75,4.32299771]
[1749460462306,0.04466284,151.78,151.75,4.32299771]
[1749460462502,0.04466284,151.78,151.76,6.5859]
[1749460464404,6.63026284,151.78,151.75,10.90959771]
[1749460467210,0.04466284,151.78,151.76,6.5861]
[1749460468112,6.63006284,151.78,151.75,10.90939771]
[1749460468615,0.04466284,151.78,151.76,6.5861]
[1749460469911,0.04466284,151.78,151.77,10.86327465]
[1749460472620,14.60759117,151.85,151.77,10.86327465]
[1749460472621,6.10206563,151.84,151.79,6.5847]
[1749460472914,6.10206563,151.84,151.79,10.86227465]
[1749460473315,6.5837,151.82,151.79,10.86227465]
[1749460473521,6.10206563,151.84,151.79,10.86227465]
[1749460473522,8.25056563,151.85,151.8,6.5844]
[1749460473715,6.5834,151.83,151.81,0.04735141]
[1749460474624,0.04615488,151.84,151.81,0.04735141]
[1749460475328,6.5836,151.82,151.81,0.04735141]
[1749460487537,6.5833,151.83,151.81,0.04735141]
[1749460487742,0.04615488,151.84,151.81,4.32492606]
[1749460488337,6.62885488,151.84,151.82,6.5834]
[1749460490238,0.04615488,151.84,151.82,6.5834]
[1749460490736,0.04615488,151.84,151.81,10.90872606]
[1749460490932,0.04615488,151.84,151.81,4.32492606]
[1749460491133,0.04615488,151.84,151.81,0.04735141]
[1749460492837,6.5836,151.82,151.81,0.04735141]
[1749460500931,0.04615488,151.84,151.81,0.04735141]
[1749460502042,6.5834,151.83,151.81,0.04735141]
[1749460502844,6.5836,151.82,151.81,0.04735141]
[1749460503947,6.5831,151.83,151.81,0.04735141]
[1749460505046,6.5831,151.83,151.81,6.63135141]
[1749460505246,6.5831,151.83,151.81,4.32492606]
[1749460505448,6.5836,151.82,151.81,4.32492606]
[1749460507648,6.5836,151.82,151.81,0.04735141]
[1749460507946,12.68566563,151.82,151.81,0.04735141]
[1749460508151,6.5836,151.82,151.81,0.04735141]
[1749460508552,10.71136986,151.82,151.81,0.04735141]
[1749460508752,16.81345291,151.82,151.81,0.04735141]
[1749460509053,6.10206563,151.82,151.76,4.27757465]
[1749460509350,4.27757465,151.79,151.69,10.33909244]
[1749460509551,6.587,151.75,151.71,6.5881]
[1749460509752,4.27757465,151.77,151.71,6.5881]
[1749460509947,4.12802083,151.76,151.71,6.5881]
[1749460510150,6.587,151.75,151.72,0.04744023]
[1749460511160,6.587,151.75,151.72,6.63534023]
[1749460511361,6.63445468,151.76,151.72,10.91291488]